fUSD/lending_fUSD_20240227
["ID","MTS","AMOUNT","RATE_DAILY","PERIOD"]
[315490148,1709076347881,-151.0,0.00023999,7]
[315490149,1709076347902,-871.91,0.00023999,2]
[315490150,1709076347924,-871.91,0.00023999,2]
[315490151,1709076347946,-871.91,0.00023999,2]
[315490152,1709076347972,-871.91,0.00023999,2]
[315490153,1709076347996,-871.91,0.00023999,2]
[315490154,1709076348018,-871.91,0.00023999,2]
[315490155,1709076348040,-871.98369232,0.00023999,2]
[315490156,1709076348060,-151.0,0.00023999,7]
[315490157,1709076348082,-151.0,0.00023999,7]
[315490158,1709076348105,-824.0,0.00023999,2]
[315490159,1709076348127,-500.0,0.00023999,2]
[315490160,1709076348150,-824.0,0.00023999,2]
[315490161,1709076348171,-500.0,0.00023999,2]
[315490162,1709076348193,-824.0,0.00023999,2]
[315490163,1709076348215,-824.0,0.00023999,2]
[315490164,1709076348237,-500.0,0.00023999,2]
[315490165,1709076348260,-418.60897334,0.00023999,2]
[315490166,1709076348282,-824.0,0.00023999,2]
[315490167,1709076348343,-824.0,0.00023999,2]
[315490168,1709076348368,-824.0,0.00023999,2]
[315490169,1709076348392,-824.0,0.00023999,2]
[315490170,1709076348418,-824.0,0.00023999,2]
[315490171,1709076348440,-824.0,0.00023999,2]
[315490172,1709076348462,-824.0,0.00023999,2]
[315490173,1709076348489,-824.06729955,0.00023999,2]
[315490174,1709076348511,-151.0,0.00023999,7]
[315490175,1709076348540,-151.0,0.00023999,7]
[315490176,1709076348566,-500.0,0.00023999,2]
[315490177,1709076348588,-500.0,0.00023999,2]
[315490178,1709076348610,-500.0,0.00023999,2]
[315490179,1709076348632,-500.0,0.00023999,2]
[315490180,1709076348653,-500.0,0.00023999,2]
[315490181,1709076348675,-528.76524868,0.00023999,2]
[315490182,1709076348697,-500.0,0.00023999,2]
[315490183,1709076348719,-500.0,0.00023999,2]
[315490184,1709076348742,-500.0,0.00023999,2]
[315490185,1709076348764,-500.0,0.00023999,2]
[315490186,1709076348786,-500.0,0.00023999,2]
[315490187,1709076348807,-500.0,0.00023999,2]
[315490188,1709076348829,-555.04016884,0.00023999,2]
[315490189,1709076348852,-722.98,0.00023999,2]
[315490190,1709076348873,-722.98,0.00023999,2]
[315490191,1709076348897,-911.74,0.00023999,2]
[315490192,1709076348921,-722.98,0.00023999,2]
[315490193,1709076348942,-911.74,0.00023999,2]
[315490194,1709076348965,-722.98,0.00023999,2]
[315490195,1709076348987,-911.74,0.00023999,2]
[315490196,1709076349012,-911.74,0.00023999,2]
[315490197,1709076349040,-722.98,0.00023999,2]
[315490198,1709076349063,-911.74,0.00023999,2]
[315490199,1709076349088,-722.98,0.00023999,2]
[315490200,1709076349113,-911.74,0.00023999,2]
[315490201,1709076349139,-722.98,0.00023999,2]
[315490202,1709076349164,-911.74,0.00023999,2]
[315490203,1709076349191,-722.98,0.00023999,2]
[315490204,1709076349217,-911.74,0.00023999,2]
[315490205,1709076349249,-722.98,0.00023999,2]
[315490206,1709076349275,-911.74,0.00023999,2]
[315490207,1709076349304,-722.98,0.00023999,2]
[315490208,1709076349330,-911.74,0.00023999,2]
[315490209,1709076349357,-722.98,0.00023999,2]
[315490210,1709076349383,-911.74,0.00023999,2]
[315490211,1709076349409,-723.18523505,0.00023999,2]
[315490212,1709076349433,-911.74,0.00023999,2]
[315490213,1709076349457,-911.74,0.00023999,2]
[315490214,1709076349482,-911.78484544,0.00023999,2]
[315490215,1709076349514,-500.0,0.00023999,2]
[315490216,1709076349542,-363.31,0.00023999,2]
[315490217,1709076349569,-372.5195,0.00023999,2]
[315490218,1709076349593,-500.0,0.00023999,2]
[315490219,1709076349616,-500.0,0.00023999,2]
[315490220,1709076349639,-500.0,0.00023999,2]
[315490221,1709076349662,-500.0,0.00023999,2]
[315490222,1709076349684,-500.0,0.00023999,2]
[315490223,1709076349706,-446.4,0.00023999,2]
[315490224,1709076349730,-500.0,0.00023999,2]
[315490225,1709076349756,-500.0,0.00023999,2]
[315490226,1709076349779,-500.0,0.00023999,2]
[315490227,1709076349802,-500.0,0.00023999,2]
[315490228,1709076349826,-500.0,0.00023999,2]
[315490229,1709076349850,-500.0,0.00023999,2]
[315490230,1709076349873,-500.0,0.00023999,2]
[315490231,1709076349897,-500.0,0.00023999,2]
[315490232,1709076349919,-500.0,0.00023999,2]
[315490233,1709076349946,-500.0,0.00023999,2]
[315490234,1709076349969,-500.0,0.00023999,2]
[315490235,1709076349995,-567.52358815,0.00023999,2]
[315490236,1709076350019,-500.0,0.00023999,2]
[315490237,1709076350045,-500.0,0.00023999,2]
[315490238,1709076350068,-500.0,0.00023999,2]
[315490239,1709076350092,-500.0,0.00023999,2]
[315490240,1709076350114,-500.0,0.00023999,2]
[315490241,1709076350137,-500.0,0.00023999,2]
[315490242,1709076350159,-500.0,0.00023999,2]
[315490243,1709076350181,-330.8277096,0.00023999,2]
[315490244,1709076350204,-798.21,0.00023999,2]
[315490245,1709076350227,-798.21,0.00023999,2]
[315490246,1709076350253,-798.21,0.00023999,2]
[315490247,1709076350276,-798.21,0.00023999,2]
[315490248,1709076350298,-798.21,0.00023999,2]
[315490249,1709076350323,-798.21,0.00023999,2]
[315490250,1709076350347,-798.21,0.00023999,2]
[315490251,1709076350371,-798.21,0.00023999,2]
[315490252,1709076350395,-798.21,0.00023999,2]
[315490253,1709076350417,-798.21,0.00023999,2]
[315490254,1709076350440,-798.21,0.00023999,2]
[315490255,1709076350463,-798.2144907,0.00023999,2]
[315490256,1709076350488,-1891.54,0.00023999,2]
[315490257,1709076350514,-1891.54,0.00023999,2]
[315490258,1709076350539,-506.11,0.00023999,2]
[315490259,1709076350562,-1891.54,0.00023999,2]
[315490260,1709076350586,-1891.54,0.00023999,2]
[315490261,1709076350610,-506.11,0.00023999,2]
[315490262,1709076350636,-1891.54,0.00023999,2]
[315490263,1709076350659,-506.11,0.00023999,2]
[315490264,1709076350681,-1891.54,0.00023999,2]
[315490265,1709076350704,-506.11,0.00023999,2]
[315490266,1709076350726,-1891.54,0.00023999,2]
[315490267,1709076350748,-506.11,0.00023999,2]
[315490268,1709076350772,-506.11,0.00023999,2]
[315490269,1709076350796,-1891.54,0.00023999,2]
[315490270,1709076350818,-506.11,0.00023999,2]
[315490271,1709076350842,-1891.54,0.00023999,2]
[315490272,1709076350867,-506.11,0.00023999,2]
[315490273,1709076350890,-1891.54,0.00023999,2]
[315490274,1709076350913,-506.11,0.00023999,2]
[315490275,1709076350936,-1891.54,0.00023999,2]
[315490276,1709076350959,-506.11,0.00023999,2]
[315490277,1709076350982,-1891.54,0.00023999,2]
[315490278,1709076351006,-506.11,0.00023999,2]
[315490279,1709076351029,-506.11,0.00023999,2]
[315490280,1709076351052,-1891.7087,0.00023999,2]
[315490281,1709076351075,-506.3444,0.00023999,2]
[315490282,1709076351098,-500.0,0.00023999,2]
[315490283,1709076351121,-500.0,0.00023999,2]
[315490284,1709076351143,-500.0,0.00023999,2]
[315490285,1709076351164,-500.0,0.00023999,2]
[315490286,1709076351186,-500.0,0.00023999,2]
[315490287,1709076351207,-500.0,0.00023999,2]
[315490288,1709076351230,-473.75239133,0.00023999,2]
[315490289,1709076351256,-500.0,0.00023999,2]
[315490290,1709076351280,-500.0,0.00023999,2]
[315490291,1709076351305,-500.0,0.00023999,2]
[315490292,1709076351328,-210.71977412,0.00023999,2]
[315490293,1709076351353,-500.0,0.00023999,2]
[315490294,1709076351379,-262.3,0.00023999,2]
[315490295,1709076351402,-909.67,0.00023999,2]
[315490296,1709076351427,-909.67,0.00023999,2]
[315490297,1709076351450,-909.67,0.00023999,2]
[315490298,1709076351474,-909.67,0.00023999,2]
[315490299,1709076351498,-909.67,0.00023999,2]
[315490300,1709076351523,-909.67,0.00023999,2]
[315490301,1709076351547,-909.67,0.00023999,2]
[315490302,1709076351572,-909.67,0.00023999,2]
[315490303,1709076351595,-909.67,0.00023999,2]
[315490304,1709076351618,-909.67,0.00023999,2]
[315490305,1709076351642,-909.67,0.00023999,2]
[315490306,1709076351666,-909.84731362,0.00023999,2]
[315490307,1709076351689,-500.0,0.00023999,2]
[315490308,1709076351712,-500.0,0.00023999,2]
[315490309,1709076351736,-500.0,0.00023999,2]
[315490310,1709076351761,-500.0,0.00023999,2]
[315490311,1709076351788,-500.0,0.00023999,2]
[315490312,1709076351813,-500.0,0.00023999,2]
[315490313,1709076351838,-500.0,0.00023999,2]
[315490314,1709076351862,-500.0,0.00023999,2]
[315490315,1709076351889,-500.0,0.00023999,2]
[315490316,1709076351912,-500.0,0.00023999,2]
[315490317,1709076351936,-500.0,0.00023999,2]
[315490318,1709076351960,-324.35,0.00023999,2]
[315490319,1709076351984,-500.0,0.00023999,2]
[315490320,1709076352009,-500.0,0.00023999,2]
[315490321,1709076352033,-500.0,0.00023999,2]
[315490322,1709076352058,-500.0,0.00023999,2]
[315490323,1709076352083,-312.96,0.00023999,2]
[315490324,1709076352110,-500.0,0.00023999,2]
[315490325,1709076352136,-500.0,0.00023999,2]
[315490326,1709076352165,-500.0,0.00023999,2]
[315490327,1709076352191,-500.0,0.00023999,2]
[315490328,1709076352216,-500.0,0.00023999,2]
[315490329,1709076352241,-500.0,0.00023999,2]
[315490330,1709076352266,-500.0,0.00023999,2]
[315490331,1709076352290,-500.0,0.00023999,2]
[315490332,1709076352319,-562.13,0.00023999,2]
[315490333,1709076352346,-500.0,0.00023999,2]
[315490334,1709076352374,-500.0,0.00023999,2]
[315490335,1709076352402,-562.13,0.00023999,2]
[315490336,1709076352428,-500.0,0.00023999,2]
[315490337,1709076352454,-500.0,0.00023999,2]
[315490338,1709076352479,-500.0,0.00023999,2]
[315490339,1709076352504,-562.13,0.00023999,2]
[315490340,1709076352529,-500.0,0.00023999,2]
[315490341,1709076352554,-562.13,0.00023999,2]
[315490342,1709076352580,-500.0,0.00023999,2]
[315490343,1709076352606,-500.0,0.00023999,2]
[315490344,1709076352631,-562.13,0.00023999,2]
[315490345,1709076352657,-500.0,0.00023999,2]
[315490346,1709076352682,-500.0,0.00023999,2]
[315490347,1709076352706,-562.13,0.00023999,2]
[315490348,1709076352731,-500.0,0.00023999,2]
[315490349,1709076352758,-158.93,0.00023999,2]
[315490350,1709076352782,-562.13,0.00023999,2]
[315490351,1709076352807,-469.12597201,0.00023999,2]
[315490352,1709076352831,-562.13,0.00023999,2]
[315490353,1709076352856,-562.13,0.00023999,2]
[315490354,1709076352881,-562.13,0.00023999,2]
[315490355,1709076352905,-562.13,0.00023999,2]
[315490356,1709076352935,-562.23129539,0.00023999,2]
[315490357,1709076352962,-1932.08,0.00023999,2]
[315490358,1709076352989,-1932.08,0.00023999,2]
[315490359,1709076353020,-1932.08,0.00023999,2]
[315490360,1709076353046,-1932.08,0.00023999,2]
[315490361,1709076353072,-1932.08,0.00023999,2]
[315490362,1709076353098,-1932.08,0.00023999,2]
[315490363,1709076353123,-1932.08,0.00023999,2]
[315490364,1709076353150,-1932.08,0.00023999,2]
[315490365,1709076353176,-1932.08,0.00023999,2]
[315490366,1709076353202,-1932.08,0.00023999,2]
[315490367,1709076353234,-1932.08,0.00023999,2]
[315490368,1709076353266,-1932.08,0.00023999,2]
[315490369,1709076353292,-1932.10112299,0.00023999,2]
[315490370,1709076353326,-500.0,0.00023999,2]
[315490371,1709076353355,-500.0,0.00023999,2]
[315490372,1709076353383,-500.0,0.00023999,2]
[315490373,1709076353411,-500.0,0.00023999,2]
[315490374,1709076353437,-500.0,0.00023999,2]
[315490375,1709076353462,-500.0,0.00023999,2]
[315490376,1709076353490,-500.0,0.00023999,2]
[315490377,1709076353520,-500.0,0.00023999,2]
[315490378,1709076353703,-500.0,0.00023999,2]
[315490379,1709076353769,-371.26451126,0.00023999,2]
[315490380,1709076353793,-151.0,0.00023999,7]
[315490381,1709076353818,-1114.26,0.00023999,2]
[315490382,1709076353842,-1114.26,0.00023999,2]
[315490383,1709076353869,-1114.26,0.00023999,2]
[315490384,1709076353893,-1114.26,0.00023999,2]
[315490385,1709076353916,-1114.26,0.00023999,2]
[315490386,1709076353940,-1114.26,0.00023999,2]
[315490387,1709076353967,-1114.26,0.00023999,2]
[315490388,1709076353990,-1114.26,0.00023999,2]
[315490389,1709076354017,-1114.26,0.00023999,2]
[315490390,1709076354040,-1114.26,0.00023999,2]
[315490391,1709076354065,-1114.26,0.00023999,2]
[315490392,1709076354088,-1114.26,0.00023999,2]
[315490393,1709076354112,-1000.0,0.00024,7]
[315490394,1709076354136,-600.0,0.00024,25]
[315490395,1709076354160,-397.35995157,0.00024,2]
[315490396,1709076354184,-1006.9369391,0.00024,2]
[315490397,1709076354209,-900.0,0.00024,3]
[315490398,1709076354232,-200.0,0.00024,2]
[315490399,1709076354258,-500.0,0.00024,2]
[315490400,1709076354284,-1185885.14587459,0.00024,30]
[315490401,1709076354311,-1000.0,0.00024,2]
[315490402,1709076354335,-3271.37,0.00024,2]
[315490403,1709076354360,-1401.95,0.00024,2]
[315490404,1709076354384,-164299.08967428,0.00024,4]
[315490405,1709076354410,-3385.55141864,0.00024,4]
[315490406,1709076354435,-2500.0,0.00024,2]
[315490407,1709076354467,-5390729.87353781,0.00024,30]
[315490408,1709076354495,-3883197.70286301,0.00024,30]
[315490409,1709076357832,-1142.17,0.00022968,2]
[315490410,1709076357862,-6325.13146965,0.00022973,2]
[315490411,1709076357888,-162.79,0.00023183,2]
[315490412,1709076357912,-162.79,0.00023356,2]
[315490413,1709076357941,600.0,0.0002315,2]
[315490414,1709076358170,2555.9,0.00022,2]
[315490415,1709076363059,616.05201423,0.00022967,2]
[315490416,1709076369872,320.82958815,0.00023,2]
[315490417,1709076383025,150.0,0.00023,2]
[315490418,1709076385948,2638.67677624,0.00023,2]
[315490419,1709076387814,320.82958815,0.00023,2]
[315490420,1709076403946,2638.67677624,0.00023,2]
[315490421,1709076407815,445.22501261,0.00023,2]
[315490422,1709076421960,1374.75060042,0.00023,2]
[315490423,1709076443944,1374.75060042,0.00023,2]
[315490424,1709076460442,171.23,0.00022935,2]
[315490425,1709076461942,1374.75060042,0.00023,2]
[315490426,1709076478206,2000.0,0.00022926,2]
[315490427,1709076481949,1374.75060042,0.00023,2]
[315490428,1709076482589,156.82292421,0.00023448,2]
[315490429,1709076504848,1374.75060042,0.00023448,2]
[315490430,1709076524840,1374.75060042,0.00023448,2]
[315490431,1709076542845,1374.75060042,0.00023448,2]
[315490432,1709076544191,200.562726,0.00022781,2]
[315490433,1709076544577,178.731338,0.00022781,2]
[315490434,1709076545106,178.731338,0.00023161,2]
[315490435,1709076547322,2624.584612,0.00022781,2]
[315490436,1709076547694,2624.584612,0.00023066,2]
[315490437,1709076548075,150.422044,0.00022781,2]
[315490438,1709076548559,2624.584612,0.0002335,2]
[315490439,1709076548719,150.422044,0.00023161,2]
[315490440,1709076553364,891.553572,0.00022781,2]
[315490441,1709076554248,891.553572,0.00023066,2]
[315490442,1709076554628,891.553572,0.0002335,2]
[315490443,1709076558841,1374.75060042,0.00023448,2]
[315490444,1709076563529,200.0,0.00022936,2]
[315490445,1709076565744,1387.6491173,0.00023,7]
[315490446,1709076574850,1374.75060042,0.00023448,2]
[315490447,1709076594870,1374.75060042,0.00023448,2]
[315490448,1709076614262,1129.60127537,0.00023448,2]
[315490449,1709076619199,997.0,0.00023,6]
[315490450,1709076619954,997.0,0.00023,6]
[315490451,1709076628427,12539.1259315,0.00022973,2]
[315490460,1709076631934,-530.65018634,0.00023527,2]
[315490461,1709076631990,-85.40182789,0.00023527,2]
[315490462,1709076631999,-162.79,0.00023528,2]
[315490463,1709076632008,-741.43235576,0.00023539,2]
[315490464,1709076632020,-3987.25685033,0.00023539,2]
[315490465,1709076632029,-178.731338,0.0002354,2]
[315490466,1709076632038,-150.422044,0.0002354,2]
[315490467,1709076632046,-242.55040476,0.00023548,2]
[315490468,1709076632056,-150.0,0.00023634,2]
[315490469,1709076632064,-575.10162317,0.00023635,2]
[315490470,1709076632073,-2624.584612,0.00023635,2]
[315490471,1709076632082,-891.553572,0.00023635,2]
[315490472,1709076632091,-162.79,0.00023701,2]
[315490473,1709076632101,-151.0,0.00023733,2]
[315490474,1709076632110,-151.0,0.00023734,2]
[315490475,1709076632119,-151.0,0.00023735,2]
[315490476,1709076632128,-5000.0,0.00023735,2]
[315490477,1709076632137,-8377.19449573,0.00023735,2]
[315490478,1709076632160,-1017.8,0.00023735,2]
[315490479,1709076632172,-412.74688738,0.00023735,2]
[315490480,1709076632187,-181793.35098531,0.00023735,2]
[315490481,1709076632198,-2713.80862213,0.00023735,2]
[315490482,1709076632210,-1241.02500544,0.00023735,2]
[315490483,1709076632221,-531.52383029,0.00023735,2]
[315490484,1709076632232,-2232.90621236,0.00023735,2]
[315490485,1709076632246,-317261.42620593,0.00023735,2]
[315490486,1709076632257,-794.17748352,0.00023735,2]
[315490487,1709076632269,-832.9,0.00023735,2]
[315490488,1709076632281,-301.48,0.00023735,2]
[315490489,1709076632294,-762.71,0.00023735,2]
[315490490,1709076632307,-440.0,0.00023735,2]
[315490491,1709076632320,-677.100004,0.00023735,2]
[315490492,1709076632338,-1851.41971048,0.00023735,2]
[315490494,1709076632349,-9276.62001971,0.00023735,2]
[315490496,1709076632369,-5667.61510321,0.00023735,2]
[315490497,1709076632386,-1180.45,0.00023735,2]
[315490498,1709076632409,-472.04,0.00023735,2]
[315490499,1709076632423,-3056.59561292,0.00023735,2]
[315490500,1709076632435,-1411.59637272,0.00023735,2]
[315490501,1709076632447,-635.74995345,0.00023735,2]
[315490503,1709076639037,-1009.9768754,0.00023735,2]
[315490504,1709076639099,-3165.7851295,0.00023735,2]
[315490514,1709076639354,-3.84702759,0.00023735,2]
[315490516,1709076639376,-73384.28026293,0.00023735,2]
[315490517,1709076639386,-3154.73,0.00023735,2]
[315490519,1709076639395,-5000.0,0.000238,9]
[315490521,1709076639405,-505.45502633,0.00023835,2]
[315490523,1709076639414,-500.0,0.00023835,2]
[315490525,1709076639424,-200.0,0.00023835,2]
[315490527,1709076639433,-500.0,0.00023835,2]
[315490529,1709076639442,-500.0,0.00023835,2]
[315490530,1709076639451,-514.22822762,0.00023835,2]
[315490531,1709076639461,-500.0,0.00023835,2]
[315490532,1709076639471,-500.0,0.00023835,2]
[315490533,1709076639480,-389.31590464,0.00023835,2]
[315490534,1709076639490,-512.57661183,0.00023835,2]
[315490535,1709076639500,-500.0,0.00023835,2]
[315490536,1709076639510,-579.15587451,0.00023835,2]
[315490537,1709076639519,-500.0,0.00023835,2]
[315490538,1709076639529,-500.0,0.00023835,2]
[315490539,1709076639539,-500.0,0.00023835,2]
[315490540,1709076639549,-500.0,0.00023835,2]
[315490541,1709076639559,-609.70713093,0.00023835,2]
[315490542,1709076639568,-500.0,0.00023835,2]
[315490543,1709076639578,-500.0,0.00023835,2]
[315490544,1709076639587,-500.0,0.00023835,2]
[315490545,1709076639598,-500.0,0.00023835,2]
[315490546,1709076639608,-500.0,0.00023835,2]
[315490547,1709076639617,-499.4628762,0.00023835,2]
[315490548,1709076639626,-522.03018914,0.00023835,2]
[315490549,1709076639635,-500.0,0.00023835,2]
[315490550,1709076639644,-500.0,0.00023835,2]
[315490551,1709076639654,-373.65,0.00023835,2]
[315490552,1709076639663,-500.0,0.00023835,2]
[315490553,1709076639672,-500.0,0.00023835,2]
[315490554,1709076639681,-500.0,0.00023835,2]
[315490555,1709076639691,-500.0,0.00023835,2]
[315490556,1709076639700,-500.0,0.00023835,2]
[315490557,1709076639711,-619.04520326,0.00023835,2]
[315490558,1709076639721,-500.0,0.00023835,2]
[315490559,1709076639731,-500.0,0.00023835,2]
[315490560,1709076639740,-414.87359554,0.00023835,2]
[315490561,1709076639749,-513.08200324,0.00023835,2]
[315490562,1709076639760,-500.0,0.00023835,2]
[315490563,1709076639770,-500.0,0.00023835,2]
[315490564,1709076639780,-500.0,0.00023835,2]
[315490565,1709076639791,-500.0,0.00023835,2]
[315490566,1709076639801,-515.64322422,0.00023835,2]
[315490567,1709076639811,-500.0,0.00023835,2]
[315490568,1709076639821,-500.0,0.00023835,2]
[315490569,1709076639832,-500.0,0.00023835,2]
[315490570,1709076639841,-500.0,0.00023835,2]
[315490571,1709076639851,-500.0,0.00023835,2]
[315490572,1709076639860,-500.0,0.00023835,2]
[315490573,1709076639870,-500.0,0.00023835,2]
[315490574,1709076639881,-507.78141552,0.00023835,2]
[315490575,1709076639890,-500.0,0.00023835,2]
[315490576,1709076639900,-500.0,0.00023835,2]
[315490577,1709076639909,-500.0,0.00023835,2]
[315490578,1709076639918,-500.0,0.00023835,2]
[315490579,1709076639929,-500.0,0.00023835,2]
[315490580,1709076639939,-500.0,0.00023835,2]
[315490581,1709076639950,-500.0,0.00023835,2]
[315490582,1709076639960,-500.0,0.00023835,2]
[315490583,1709076639970,-500.0,0.00023835,2]
[315490584,1709076639981,-500.0,0.00023835,2]
[315490585,1709076639993,-169.58061437,0.00023835,2]
[315490586,1709076640005,-500.0,0.00023835,2]
[315490587,1709076640016,-500.0,0.00023835,2]
[315490588,1709076640028,-500.0,0.00023835,2]
[315490589,1709076640039,-500.0,0.00023835,2]
[315490590,1709076640049,-500.0,0.00023835,2]
[315490591,1709076640061,-500.0,0.00023835,2]
[315490592,1709076640073,-500.0,0.00023835,2]
[315490593,1709076640083,-607.31435184,0.00023835,2]
[315490594,1709076640094,-500.0,0.00023835,2]
[315490595,1709076640104,-500.0,0.00023835,2]
[315490596,1709076640114,-500.0,0.00023835,2]
[315490597,1709076640124,-500.0,0.00023835,2]
[315490598,1709076640134,-500.0,0.00023835,2]
[315490599,1709076640143,-500.0,0.00023835,2]
[315490600,1709076640153,-500.0,0.00023835,2]
[315490601,1709076640163,-512.53576464,0.00023835,2]
[315490602,1709076640172,-500.0,0.00023835,2]
[315490603,1709076640181,-588.93837155,0.00023835,2]
[315490604,1709076640191,-503.43403529,0.00023835,2]
[315490605,1709076640200,-500.0,0.00023835,2]
[315490606,1709076640209,-500.0,0.00023835,2]
[315490607,1709076640218,-514.39041422,0.00023835,2]
[315490608,1709076640228,-258.99797784,0.00023835,2]
[315490609,1709076640237,-500.0,0.00023835,2]
[315490610,1709076640246,-500.0,0.00023835,2]
[315490611,1709076640255,-504.03409594,0.00023835,2]
[315490612,1709076640265,-500.0,0.00023835,2]
[315490613,1709076640274,-500.0,0.00023835,2]
[315490614,1709076640284,-576.2209515,0.00023835,2]
[315490615,1709076640292,-530.7777088,0.00023835,2]
[315490616,1709076640302,-500.0,0.00023835,2]
[315490617,1709076640311,-500.0,0.00023835,2]
[315490618,1709076640320,-500.0,0.00023835,2]
[315490619,1709076640330,-500.0,0.00023835,2]
[315490620,1709076640339,-526.28,0.00023835,2]
[315490621,1709076640349,-500.0,0.00023835,2]
[315490622,1709076640358,-500.0,0.00023835,2]
[315490625,1709076640533,-500.0,0.00023835,2]
[315490626,1709076640542,-500.0,0.00023835,2]
[315490627,1709076640552,-500.0,0.00023835,2]
[315490628,1709076640562,-500.0,0.00023835,2]
[315490629,1709076640572,-500.0,0.00023835,2]
[315490630,1709076640581,-500.0,0.00023835,2]
[315490631,1709076640590,-500.0,0.00023835,2]
[315490632,1709076640600,-500.0,0.00023835,2]
[315490633,1709076640609,-500.0,0.00023835,2]
[315490634,1709076640618,-459.41234676,0.00023835,2]
[315490635,1709076640627,-500.0,0.00023835,2]
[315490636,1709076640637,-500.0,0.00023835,2]
[315490637,1709076640648,-291.37692072,0.00023835,2]
[315490638,1709076640658,-507.2717919,0.00023835,2]
[315490639,1709076640668,-500.0,0.00023835,2]
[315490640,1709076640677,-500.0,0.00023835,2]
[315490641,1709076640686,-500.0,0.00023835,2]
[315490642,1709076640696,-500.0,0.00023835,2]
[315490643,1709076640705,-500.0,0.00023835,2]
[315490644,1709076640714,-500.0,0.00023835,2]
[315490645,1709076640723,-500.0,0.00023835,2]
[315490646,1709076640732,-514.2817621,0.00023835,2]
[315490647,1709076640742,-500.0,0.00023835,2]
[315490648,1709076640751,-500.0,0.00023835,2]
[315490649,1709076640761,-791.09,0.00023835,2]
[315490650,1709076640770,-791.09,0.00023835,2]
[315490651,1709076640780,-791.09,0.00023835,2]
[315490652,1709076640789,-791.09,0.00023835,2]
[315490653,1709076640798,-500.0,0.00023835,2]
[315490654,1709076640808,-500.0,0.00023835,2]
[315490655,1709076640818,-500.0,0.00023835,2]
[315490656,1709076640827,-500.0,0.00023835,2]
[315490657,1709076640837,-500.0,0.00023835,2]
[315490658,1709076640847,-584.99,0.00023835,2]
[315490659,1709076640856,-538.74625159,0.00023835,2]
[315490660,1709076640866,-500.0,0.00023835,2]
[315490661,1709076640875,-500.0,0.00023835,2]
[315490662,1709076640884,-500.0,0.00023835,2]
[315490663,1709076640894,-500.0,0.00023835,2]
[315490664,1709076640903,-500.0,0.00023835,2]
[315490665,1709076640912,-500.0,0.00023835,2]
[315490666,1709076640922,-500.0,0.00023835,2]
[315490667,1709076640931,-500.0,0.00023835,2]
[315490668,1709076640940,-500.0,0.00023835,2]
[315490669,1709076640949,-500.0,0.00023835,2]
[315490670,1709076640959,-500.0,0.00023835,2]
[315490671,1709076640968,-506.56950255,0.00023835,2]
[315490672,1709076640977,-500.0,0.00023835,2]
[315490673,1709076640987,-500.0,0.00023835,2]
[315490674,1709076640996,-500.0,0.00023835,2]
[315490675,1709076641006,-500.0,0.00023835,2]
[315490676,1709076641015,-500.0,0.00023835,2]